Cogmind - Beta 17.1 @@@ ROGUE MODE // 2026.09.10 @ 10:20:24 Player: Zane Result: Self-destructed Performance ------------- Evolutions (2) 1000 Regions Visited (3) 600 Robots Destroyed (27) 135 Value Destroyed (554) 554 Prototype IDs (4) 80 Alien Tech Used (0) 0 Bonus (0) 0 TOTAL SCORE: 2369 Bonus ------- None Cogmind --------- Core Integrity 463/550 Matter 300/300 Energy 132/250 System Corruption 0% Temperature Cool (4) Movement Flying (32) Location -8/Materials Parts ------- > --- POWER (1) -------- Ion Engine > --- PROPULSION (2) --- Cesium-ion Thruster Cesium-ion Thruster > --- UTILITY (6) ------ Small Storage Unit Targeting Computer > --- WEAPON (2) ------- (None) > --- INVENTORY (8) ---- Improved Aluminum Leg Cesium-ion Thruster Cesium-ion Thruster Medium Matter Pod (65) Signal Interpreter Improved Terrain Scanner Grenade Launcher Peak State ------------ > --- POWER ------------ Light Nuclear Core > --- PROPULSION ------- Aluminum Leg Aluminum Leg > --- UTILITY ---------- Small Storage Unit Medium Matter Pod Improved Terrain Scanner Targeting Computer > --- WEAPON ----------- Enhanced Flamer Makeshift Spear > --- INVENTORY -------- Ion Engine Wheel Cesium-ion Thruster Cesium-ion Thruster Signal Interpreter Grenade Launcher Mining Laser [Rating: 19] Favorites ----------- Power Light Nuclear Core Engine Ion Engine Power Core Light Nuclear Core Propulsion Aluminum Leg Treads Light Treads Leg Aluminum Leg Wheel Wheel Flight Unit Cesium-ion Thruster Utility Small Storage Unit Device Seismic Detector Storage Small Storage Unit Processor Targeting Computer Weapon Light Assault Rifle Ballistic Gun Light Assault Rifle Ballistic Cannon Light Cannon Launcher Grenade Launcher Special Weapon Enhanced Flamer Slashing Weapon Mining Claw Piercing Weapon Makeshift Spear Build | -11 -10 -10 -8 ------- Run | Yrd Mat Sub Mat Slots Evolved 4 | . . . 4 Power . | . . . . Propulsion . | . . . . Utility 4 | . . . 4 Weapon . | . . . . Parts Attached 27 | 8 9 3 7 Power 3 | 1 1 . 1 Engine 2 | 1 . . 1 Core 1 | . 1 . . Reactor . | . . . . Propulsion 9 | 3 4 . 2 Treads 1 | 1 . . . Leg 4 | 2 2 . . Wheel 1 | . 1 . . Hover . | . . . . Flight 3 | . 1 . 2 Utility 6 | 2 . 1 3 Device 3 | 1 . 1 1 Storage 2 | 1 . . 1 Processor 1 | . . . 1 Hackware . | . . . . Protection . | . . . . Artifact . | . . . . Weapon 9 | 2 4 2 1 Energy Gun . | . . . . Energy Cannon . | . . . . Ballistic Gun 3 | 2 1 . . Ballistic Cannon 1 | . 1 . . Launcher 1 | . . 1 . Special Weapon 2 | . 1 . 1 Impact Weapon . | . . . . Slashing Weapon 1 | . 1 . . Piercing Weapon 1 | . . 1 . Special Melee Weapon . | . . . . Unidentified Prototypes . | . . . . Parts Lost 13 | . 6 1 6 Power 2 | . 1 . 1 Propulsion 4 | . 2 . 2 Utility 2 | . 1 1 . Weapon 5 | . 2 . 3 Highest Loss Streak 6 | . 5 1 6 To Critical Strikes 1 | . 1 . . Average Backups 7 | 2 7 7 7 Power . | . 1 1 . Propulsion 1 | 1 . 1 3 Utility 3 | . 4 4 1 Weapon 1 | . 1 1 1 Tool/Special . | . . . . Unused Backups 7 | . 3 . 4 Power . | . . . . Propulsion 3 | . . . 3 Utility 4 | . 3 . 1 Weapon . | . . . . Tool/Special . | . . . . Average Slot Usage (%) 87 | . 91 88 73 Engine 4 | . 9 . . Core 7 | . 3 14 7 Leg 24 | . 25 28 15 Device 7 | . 9 3 7 Storage 14 | . 14 14 16 Processor 1 | . . . 8 Ballistic Gun 7 | . 14 . . Ballistic Cannon 1 | . 2 . . Launcher 3 | . . 11 . Special Weapon 3 | . 1 2 7 Slashing Weapon 7 | . 6 12 . Piercing Weapon 1 | . . 1 7 Peak Build Rating 19 | 7 9 12 19 Average Rating 9 | 5 7 8 17 On Entrance 7 | . 7 9 12 Avg Prop Armor Cover (%) 5 | . 5 . . Naked Turns . | . . . . Heaviest Build 17 | 13 16 16 17 Greatest Support 20 | 20 20 20 20 Greatest Overweight (x) 2 | 2 2 . 1 Average Overweight (x) . | . . . . Largest Inventory Capacity 8 | 8 8 8 8 Average Capacity 7 | 7 8 8 8 Most Carried 8 | 3 8 8 8 Average Carried 7 | 2 7 7 7 Final Capacity 8 | 8 8 8 8 Final Carried 8 | 3 8 8 7 Class Distribution -------------------- 82% | Mutant 17% | Scavenger-Mutant Dominant Class ---------------- Mutant | -10/Materials Mutant | -10/Subcaves Scavenger-Mutant | -8/Materials Resources | -11 -10 -10 -8 ----------- Run | Yrd Mat Sub Mat Matter Collected 721 | 318 183 114 106 Remotely . | . . . . Salvage Created 592 | 76 263 92 161 Parts 45 | 10 22 10 3 Haulers Intercepted 3 | . 2 . 1 Recyclers Shooed . | . . . . Parts Field Recycled . | . . . . Retrieved Matter . | . . . . Parts Self-Destructed 6 | . . 6 . Prevented . | . . . . Parts Restored . | . . . . Kills | -11 -10 -10 -8 ------- Run | Yrd Mat Sub Mat Combat Hostiles Destroyed 18 | . 8 7 3 Melee 3 | . 3 . . Guns 3 | . 3 . . Cannons 3 | . 2 . 1 AOE 7 | . . 7 . Classes Destroyed 8 | 1 4 1 2 Tunneler 4 | 4 . . . Hauler 3 | . 2 . 1 Watcher 2 | . 2 . . Swarmer 9 | . 6 3 . Grunt 3 | . 2 . 1 Sentry 1 | . . . 1 Hunter 1 | . . . 1 Subdweller 4 | . . 4 . Best Kill Streak 4 | 4 4 3 1 Combat Bots Only 3 | . 3 3 1 Max Kills in Single Turn 2 | 1 1 2 1 Gunslinging . | . . . . Exploded 2 | . . 2 . Melee 1 | . 1 . . Uniques/NPCs Destroyed . | . . . . Combat | -11 -10 -10 -8 -------- Run | Yrd Mat Sub Mat Hostile Shots Fired 155 | . 102 9 44 Missed 42 | . 21 4 17 Hits 113 | . 81 5 27 Projectile 113 | . 81 5 27 Critical Strikes 4 | . 3 . 1 Damage Taken 1347 | . 760 165 422 Core 329 | . 209 33 87 Absorbed by Shields . | . . . . Core Remaining (%) 51 | 100 . 3 . Volleys Fired 84 | 19 33 10 22 Largest 2 | 2 2 1 1 Hottest 100 | 40 40 30 100 Shots Fired 125 | 38 55 10 22 Gun 82 | 38 44 . . Cannon 11 | . 11 . . Launcher 10 | . . 10 . Special 22 | . . . 22 Kinetic 93 | 38 55 . . Thermal 22 | . . . 22 Explosive 10 | . . 10 . Electromagnetic . | . . . . Robot Hit Streak 10 | 5 6 10 8 Robot Miss Streak 6 | 4 6 . 2 Penetration Max . | . . . . Secondary Targets 1 | . 1 . . Max Gunslinging Chain 1 | . 1 . . Shots Hit Robots 80 | 18 35 8 19 Core Hits 40 | 7 17 11 5 Critical Kills . | . . . . Critical Parts Destroyed . | . . . . Critical Strikes . | . . . . Melee Attacks 33 | . 23 4 6 Impact . | . . . . Slashing 27 | . 23 4 . Piercing 6 | . . . 6 Sneak Attacks 4 | . 2 . 2 Combat Hostiles 1 | . 1 . . Follow-up Attacks . | . . . . Damage Inflicted 1706 | 156 564 620 366 Guns 323 | 156 167 . . Cannons 91 | . 91 . . Explosions 620 | . . 620 . Melee 481 | . 306 . 175 Ramming . | . . . . Kinetic 414 | 156 258 . . Thermal 191 | . . . 191 Explosive 620 | . . 620 . Electromagnetic . | . . . . Impact . | . . . . Slashing 306 | . 306 . . Piercing 175 | . . . 175 Highest Corruption . | . . . . Average Corruption . | . . . . Corruption Purged . | . . . . Corruption Blocked . | . . . . Overload Shots . | . . . . Overflow Damage 41 | . . . 41 Projectiles . | . . . . Explosions . | . . . . Melee 41 | . . . 41 Knockbacks 1 | . 1 . . Impact . | . . . . Kinetic 1 | . 1 . . Secondary . | . . . . Self-Inflicted Damage 21 | . . 21 . Shots 2 | . . 2 . Rammed . | . . . . Targets Rammed . | . . . . Kicked . | . . . . Crushed . | . . . . Highest Temperature 137 | . 17 . 137 Average Temperature 36 | . 12 . 37 Received Heat Transfer 282 | . 93 . 189 Siege Activations . | . . . . Martial Activations . | . . . . Shielding Activations . | . . . . Robots Disrupted . | . . . . Combat Hostiles . | . . . . Robots Corrupted . | . . . . Combat Hostiles . | . . . . Parts Fried . | . . . . Impact Corruptions . | . . . . Robots Melted 2 | . . . 2 Combat Hostiles 2 | . . . 2 Parts Melted 1 | . . . 1 Heat Transferred 1250 | . . . 1250 Parts Sabotaged . | . . . . Parts Stolen . | . . . . Parts Stripped . | . . . . Power Chain Reactions . | . . . . Alert | -11 -10 -10 -8 ------- Run | Yrd Mat Sub Mat Maximum Alert Level . | . . . . Low Security (%) 100 | 100 100 . 100 Level 1 . | . . . . Level 2 . | . . . . Level 3 . | . . . . Level 4 . | . . . . Level 5 . | . . . . High Security . | . . . . Max Security . | . . . . Peak Influence 105 | 10 105 . 40 Initial 15 | . . . 15 Average 20 | 2 27 . 9 Influence Increases 514 | 20 292 70 132 Destroy 0b10 Robot/C 280 | . 160 60 60 Destroy 0b10 Robot/NC 45 | 20 20 . 5 Destroy Leader 70 | . 38 10 22 Successful Hack 29 | . 29 . . Disable Machine 15 | . 15 . . Partial Spotted 15 | . . . 15 Lose Combat Pursuer 60 | . 30 . 30 Influence Decreases 509 | 20 258 74 157 Entered New Map 32 | . . 17 15 Time Decay 405 | 20 216 57 112 Lost Part 72 | . 42 . 30 Squads Dispatched 1 | . 1 . . Investigation 1 | . 1 . . Extermination . | . . . . Reinforcement . | . . . . Assault . | . . . . Garrison . | . . . . Intercept . | . . . . Searches Triggered . | . . . . Construction Impeded . | . . . . Haulers Reinforced . | . . . . Active Scanning Responses . | . . . . Cargo Convoy Interrupts . | . . . . Stealth | -11 -10 -10 -8 --------- Run | Yrd Mat Sub Mat Distress Signals 4 | . 2 . 2 Communications Jammed . | . . . . Distress Signals . | . . . . Times Spotted 39 | . 16 7 16 Peak Tracking Total 5 | . 5 3 5 Tactical Retreats 2 | . 1 . 1 Traps | -11 -10 -10 -8 ------- Run | Yrd Mat Sub Mat Traps Triggered 2 | . 1 1 . Indirectly . | . . . . Trap Hack Attempts . | . . . . Triggered . | . . . . Disarmed . | . . . . Reprogrammed . | . . . . Reused . | . . . . Traps Extracted . | . . . . Installed . | . . . . Triggered . | . . . . Machines | -11 -10 -10 -8 ---------- Run | Yrd Mat Sub Mat Machines Disabled 1 | . 1 . . Max in Single Turn 1 | . 1 . . Machines Repaired . | . . . . Machines Dismantled . | . . . . Machines Sabotaged . | . . . . Overloaded Fab Kills . | . . . . Hacking | -11 -10 -10 -8 --------- Run | Yrd Mat Sub Mat Machines Accessed 5 | . 3 . 2 Terminals 5 | . 3 . 2 Fabricators . | . . . . Repair Stations . | . . . . Recycling Units . | . . . . Scanalyzers . | . . . . Garrison Access . | . . . . Total Hacks 26 | . 17 . 9 Successful 11 | . 10 . 1 Failed 15 | . 7 . 8 Catastrophic 2 | . 2 . . Database Lockouts . | . . . . Manual 24 | . 15 . 9 Terminals 26 | . 17 . 9 Fabricators . | . . . . Repair Stations . | . . . . Recycling Units . | . . . . Scanalyzers . | . . . . Garrison Access . | . . . . Terminal Hacks 4 | . 4 . . Prototype ID Bank 3 | . 3 . . Registered Components 1 | . 1 . . Fabricator Hacks . | . . . . Repair Station Hacks . | . . . . Recycling Unit Hacks . | . . . . Scanalyzer . | . . . . Garrison Access Hacks . | . . . . Unauthorized Hacks 7 | . 6 . 1 Terminals 7 | . 6 . 1 Botnet 4 | . 3 . 1 Skim 3 | . 3 . . Fabricators . | . . . . Repair Stations . | . . . . Recycling Units . | . . . . Scanalyzers . | . . . . Garrison Access . | . . . . Data Cores Recovered . | . . . . Used . | . . . . Hacking Detections 5 | . 3 . 2 Full Trace Events . | . . . . Feedback Events . | . . . . Feedback Blocked . | . . . . Robot Schematics Acquired . | . . . . Robots Built . | . . . . Authchips . | . . . . Time . | . . . . Total Robot Build Rating . | . . . . Part Schematics Acquired . | . . . . Parts Built . | . . . . Authchips . | . . . . Time . | . . . . Total Part Build Rating . | . . . . Part Studies Acquired . | . . . . Parts Repaired . | . . . . Time . | . . . . Parts Recycled . | . . . . Recycled Matter . | . . . . Retrieved Matter . | . . . . Retrieved Components . | . . . . Parts Scanalyzed . | . . . . Part Schematics Acquired . | . . . . Parts Damaged . | . . . . Bothacking | -11 -10 -10 -8 ------------ Run | Yrd Mat Sub Mat Used RIF Installer . | . . . . Robots Hacked . | . . . . Non-combat . | . . . . Combat . | . . . . Robot Hacks Applied . | . . . . Relay Couplers Released . | . . . . Fabnet Peak Effective % . | . . . . Robots Rewired . | . . . . Allies Hacked . | . . . . Hacks Repelled . | . . . . Allies | -11 -10 -10 -8 -------- Run | Yrd Mat Sub Mat Total Allies . | . . . . Largest Group . | . . . . Highest-Rated Group . | . . . . Highest-Rated Ally . | . . . . Total Orders . | . . . . Ally Attacks . | . . . . Total Damage . | . . . . Kills . | . . . . Allies Corrupted . | . . . . Allies Melted . | . . . . Intel | -11 -10 -10 -8 ------- Run | Yrd Mat Sub Mat Active Infowar (turns) 1093 | 25 614 146 308 Sensors 146 | . . 146 . Terrain 308 | . . . 308 Seismic 639 | 25 614 . . Robot Analysis Total . | . . . . Derelict Logs Recovered . | . . . . Drone Launches . | . . . . Drone Recoveries . | . . . . Exploration | -11 -10 -10 -8 ------------- Run | Yrd Mat Sub Mat Turns Passed 1955 | 142 893 573 347 Spaces Moved 1213 | 64 554 393 202 Core 19 | 12 7 . . Treads . | . . . . Legs 1126 | 52 525 393 156 Wheels 20 | . 20 . . Hover . | . . . . Flight 48 | . 2 . 46 Fastest Speed 32 | 50 95 120 32 Average Speed 117 | 118 119 120 104 Slowest Speed 190 | 150 150 120 190 Overloaded Moves . | . . . . Propulsion Burnouts . | . . . . Robots Hopped 3 | . . . 3 Potential Cave-ins . | . . . . Cave-ins Triggered . | . . . . Exploration Rate (%) 31 | 5 84 23 14 Regions Visited 3 Branch Regions 1 Pre-discovered Areas . | . . . . Known Exits Taken . | . . . . Unknown Exits Taken 3 | 1 1 1 . Scrap Searched . | . . . . Spaces Dug . | . . . . Terrain Destroyed 53 | . . 53 . Melee . | . . . . Projectile . | . . . . AOE 53 | . . 53 . Terrain Rammed . | . . . . Walls Destroyed . | . . . . Machines Disabled . | . . . . Actions | -11 -10 -10 -8 --------- Run | Yrd Mat Sub Mat Total 1553 | 96 693 476 288 Wait 167 | 1 56 65 45 Move 1204 | 63 553 392 196 Hop 3 | . . . 3 Pick Up 21 | 3 12 1 5 Fast Attach 14 | 8 5 1 . Attach 9 | . 1 1 7 Detach 3 | 1 . . 2 Swap 5 | . 3 1 1 Drop 10 | 1 7 1 1 Fire 84 | 19 33 10 22 Melee 33 | . 23 4 6 Ram . | . . . . Kick . | . . . . Crush . | . . . . Escape Stasis . | . . . . Rewire . | . . . . Trap . | . . . . Miscellaneous . | . . . . Route ------- -11/Scrapyard -10/Materials (discovered 4 exits: [*Mat] / [*Min x2] / [*Sub]) -10/Subcaves -8/Materials History --------- Turn | Location | Event 11 | -11/Scrapyard | Discovered new exit (range 16) 143 | -11/Scrapyard | Entered Materials 303 | -10/Materials | Build established: Mutant 342 | -10/Materials | Discovered new exit (range 16) 684 | -10/Materials | Discovered new exit (range 8) 749 | -10/Materials | Core integrity fell below 50% 795 | -10/Materials | Lost 5 parts (1p2n1u1w) 817 | -10/Materials | Core integrity fell below 20% 912 | -10/Materials | Discovered new exit (range 7) 1024 | -10/Materials | Discovered new exit (range 5) 1036 | -10/Materials | Entered Subcaves 1037 | -10/Subcaves | Approached by a straggling Scientist 1526 | -10/Subcaves | Discovered new exit (range 14) 1609 | -10/Subcaves | Entered Materials 1609 | -8/Materials | Evolved 4 slots: Utility x4 1857 | -8/Materials | Build established: Scavenger-Mutant 1956 | -8/Materials | Self-destructed Last Messages --------------- 01793_ A-02 Transporter destroyed. 01795_ Acquired 59 matter. 01828_ K-01 Serf collects debris. 01831_ K-01 Serf cleans the Processing Tank. 01837_ K-01 Serf collects debris. 01882_ Aluminum Leg destroyed. 01886_ Lgt. Nuclear Core destroyed. 01886_ Critical hit (Burn: +37). 01887_ G-47 Trooper heat spikes uncontrollably. 01887_ G-47 Trooper critical meltdown. 01887_ Particle Gun melted. 01893_ Acquired 8 matter. 01894_ W-25 Informer sends out distress signal. 01912_ Aluminum Leg destroyed. 01916_ Mak. Spear destroyed. 01920_ Enh. Flamer destroyed. 01938_ Mining Laser destroyed. 01945_ G-47 Trooper heat damages Lgt. Nuclear Core. 01948_ Acquired Imp. Aluminum Leg. Map ----- +----------------------------------------------------+ | ???????????????? ??????????????????????????????? | | ???????????????? ??????????????????????????????? | | ???????????????? ??????????????????????????????? | | ???????????????? ???#??????????????????????????? | | ???????????????? ??????????????????????????????? | | ???????????????? #?????????????????????????????? | | ????????????#??? ??????????????????????????????? | | ???????????????? ???????#??????????????????????? | | ???????????????? ??????????????????????????????? | | ????? ? ?????#?? ??????????????????????????????? | | ????????????#???# #????#?????????????????????????? | | ????????????????# #??????#??????????????? ???????? | | ????????????????# #??????????????????????????????? | | ?????? ??????? ?# ##?????#???????????????????????? | | ????????#???????# #??????????????????????????????? | | ????????????????# ##?????????????????????????????? | | ????????????????# #???#?#??#??#?????????#????????? | | ????#???????????# #???????????#??????#???????????? | | ????# ? ????????# #?????##?##?#???#??# ????? ?? | | ????+ ??????????# #??????????#????#?? ????? #? | | ??? # ?????????# ##??#?#?????????#?## ????? #? | | ????# ??? ?????# ##???#??############[ ????# #? | | ????# ????????#%####??#?# ## ?? ## #? | | ?#+## ######### ##??## ##! ?? ## #? | | ?# g !###### gg [## "" / #? | | ?# a k! @/ l [[## "" ## #? | | ??##+####+####### =###### [ ## T" ## #? | | ??????# #??## ##???## ## "" ## #? | | ??????# #?#?# #??##?# ## "" ## #? | | ??????# """ #???# ####??# % #? ## ## | | ??????# """ ##??# ##????#######+######+### # | | ??????# """ #??## ########## | | ??????# #??# T | | ??????########??# | | ???????#????????# """"" #######+########## # | | ????????????????# ""T"" #?# #????## ## | | ??????????? ????# #?# #?????# #? | | ?????????????##?# ### """"" #???#?# #? | | ????????????????# " " #?# """"" ##????# #? | | ????????????????#^ """"" #?# """"" #?????# #? | | ???????? ???#???# """"" #?# #?????# #? | | ????????????????# """"" #?# ##????# #? | | ???????????????? """ #?# #?????#####? | | ?????????? ???? [ #?#######?#?#??????????? | | ?????????????? ?? #?????#????????????????? | | ?????????????#####"T??#####??#?#?????????????????? | | ?????????????????##?????#??????#?????????????????? | | | | | | | +----------------------------------------------------+ Best States ------------- Heat Dissipation 31 Energy Generation 14 Energy Capacity 250 Matter Stores 400 Matter Capacity 400 Sight Range 16 Robot Scan Range 14 Terrain Scan Range 16 Terrain Scan Density 10 Evasion (%) 63 Targeting Accuracy 5 Item Schematics ----------------- None Robot Schematics ------------------ None Fabricated ------------ Nothing Repaired ---------- Nothing Studied --------- None Alien Tech Used ----------------- None Achievements -------------- None Challenges ------------ None Game ------ Seed BehemothMultinovaDirector Manual? 0 Play Time 00:23:30 Cumulative 77.9 hours Start 2026.09.10 @ 09:43:42 End 2026.09.10 @ 10:20:24 Sessions 3 Manual Loads 0 Difficulty Rogue Special Mode None Game No. 87 Rogue 87 Adventurer 0 Explorer 0 Win Type - Total 0 Types 0/0/0/0/0/0/0/0/0/0 Lore% 57 Gallery% 44 Achievement% 34 Wizard Run 0 Options --------- Layout 1 ASCII 0 Keyboard 0 Movement Numpad Keybinds 0 Fullscreen 2 Font 24/Smallcaps Map View 50x35 Zoom Use 0% Tactical HUD 1 Map Filters NONE Filters NONE Steam 1 RUN: cf47003e-4099-4a9b-a12d-32fd7e793afc